bitfinex-derivatives/quotes_SOLF0:USTF0_20250919
["timestamp","ask_amount","ask_price","bid_price","bid_amount"]
[1758296898633,7.3,237.36,237.24,13.61112269]
[1758296899926,7.3,237.36,237.25,3.7914]
[1758296900131,7.3,237.4,237.26,6.62]
[1758296900728,3.7893,237.39,237.26,6.62]
[1758296902737,7.3,237.4,237.26,6.62]
[1758296903829,3.7898,237.35,237.26,6.62]
[1758296904126,11.0898,237.35,237.26,6.62]
[1758296905932,7.3,237.35,237.26,6.62]
[1758296906928,7.3,237.35,237.2,19.85643882]
[1758296907128,7.3,237.37,237.21,6.62]
[1758296907323,3.7904,237.32,237.21,6.62]
[1758296907662,7.3,237.41,237.23,6.62]
[1758296907835,7.3,237.41,237.25,6.62]
[1758296909132,7.18,237.38,237.25,6.62]
[1758296910032,7.18,237.38,237.26,3.7912]
[1758296910236,7.18,237.38,237.27,6.75]
[1758296910936,11.33260612,237.47,237.28,6.75]
[1758296910937,7.18,237.47,237.28,6.75]
[1758296911133,7.18,237.47,237.32,6.99112269]
[1758296911330,7.18,237.47,237.33,6.75]
[1758296911530,10.968,237.47,237.33,6.75]
[1758296911751,7.18,237.47,237.33,6.75]
[1758296912933,3.7882,237.46,237.33,6.75]
[1758296913938,3.7884,237.45,237.33,6.75]
[1758296914158,7.18,237.44,237.33,6.75]
[1758296914332,7.18,237.39,237.28,13.74112269]
[1758296914546,7.18,237.39,237.28,6.75]
[1758296914735,7.18,237.39,237.24,13.74112269]
[1758296915731,7.18,237.39,237.25,13.74112269]
[1758296915937,7.18,237.39,237.26,6.75]
[1758296916940,10.9692,237.39,237.26,6.75]
[1758296917445,7.18,237.39,237.27,13.74112269]
[1758296917637,7.18,237.39,237.27,17.53202269]
[1758296917837,3.7885,237.43,237.22,58.9846]
[1758296917838,3.7885,237.43,237.29,6.75]
[1758296918040,3.7885,237.43,237.3,6.75]
[1758296918341,7.18,237.44,237.31,6.75]
[1758296918956,10.9685,237.44,237.31,6.75]
[1758296920441,7.18,237.44,237.32,6.75]
[1758296922345,10.9685,237.44,237.32,6.75]
[1758296922747,7.18,237.44,237.32,6.75]
[1758296923949,7.18,237.53,237.35,6.75]
[1758296924450,3.7871,237.52,237.37,3.7893]
[1758296924647,7.18,237.51,237.38,6.75]
[1758296927350,7.18,237.51,237.38,10.5392]
[1758296929350,7.18,237.51,237.39,6.75]
[1758296929550,7.18,237.5,237.34,6.75]
[1758296929850,7.18,237.48,237.34,6.75]
[1758296930051,58.9188,237.49,237.3,39.82470047]
[1758296930052,7.18,237.43,237.3,39.82470047]
[1758296930674,7.18,237.43,237.31,6.75]
[1758296931149,7.18,237.43,237.32,3.7902]
[1758296931353,7.18,237.48,237.33,6.75]
[1758296931852,7.18,237.48,237.34,6.75]
[1758296932951,7.18,237.48,237.36,3.7895]
[1758296933153,7.18,237.48,237.37,6.75]
[1758296934151,7.18,237.48,237.33,6.75]
[1758296934539,7.18,237.48,237.34,3.7898]
[1758296935752,7.18,237.48,237.33,6.75]
[1758296936856,7.18,237.48,237.36,3.7895]
[1758296937056,7.18,237.48,237.37,6.75]
[1758296939056,7.18,237.48,237.37,10.5395]
[1758296939554,7.08,237.4,237.24,6.99112269]
[1758296939852,7.08,237.36,237.2,19.74272053]
[1758296940051,7.08,237.36,237.2,7.23]
[1758296940648,7.08,237.36,237.21,6.99112269]
[1758296940847,7.08,237.36,237.22,7.23]
[1758296941059,7.08,237.46,237.25,7.23]
[1758296941847,7.08,237.46,237.26,6.99112269]
[1758296942055,7.08,237.46,237.27,7.23]
[1758296942256,3.7887,237.42,237.27,7.23]
[1758296942453,7.08,237.41,237.27,7.23]
[1758296942747,7.08,237.41,237.28,7.23]
[1758296943562,7.08,237.41,237.3,7.23]
[1758296945362,7.08,237.47,237.32,7.23]
[1758296945567,7.08,237.47,237.33,7.23]
[1758296945969,7.08,237.47,237.35,3.7898]
[1758296946366,7.08,237.47,237.36,7.23]
[1758296948968,58.915,237.51,237.32,32.91717547]
[1758296949168,58.9266,237.46,237.31,7.23]
[1758296949368,7.08,237.45,237.31,7.23]
[1758296949564,3.7888,237.42,237.31,7.23]
[1758296949771,7.08,237.41,237.31,7.23]
[1758296953776,7.08,237.41,237.31,40.76260528]
[1758296961281,3.7883,237.45,237.32,7.23]
[1758296963581,7.08,237.46,237.34,6.99112269]
[1758296963783,7.08,237.46,237.35,7.23]
[1758296972882,10.8682,237.46,237.35,7.23]
[1758296973582,7.17,237.44,237.33,6.99112269]
[1758296973783,2.31856582,237.43,237.31,47.43372797]
[1758296973987,7.17,237.42,237.31,47.43372797]
[1758296974886,10.9587,237.42,237.31,47.43372797]
[1758296976090,7.17,237.42,237.31,47.43372797]
[1758296976489,7.17,237.42,237.32,6.99112269]
[1758296976689,7.17,237.42,237.31,47.43372797]
[1758296976991,2.31856582,237.44,237.31,47.43372797]
[1758296977186,2.31856582,237.44,237.31,40.44260528]
[1758296977790,7.17,237.43,237.31,40.44260528]
[1758296982690,10.9587,237.43,237.31,6.91]
[1758296982892,2.31856582,237.4,237.31,6.91]
[1758296983097,7.17,237.39,237.31,6.91]
[1758296984092,2.31856582,237.36,237.26,13.90112269]
[1758296984293,7.17,237.35,237.26,13.90112269]
[1758296984597,7.17,237.35,237.26,6.91]
[1758296986197,7.17,237.46,237.27,6.91]
[1758296986397,7.17,237.4,237.27,6.91]
[1758296990902,7.17,237.4,237.26,6.99112269]
[1758296991211,7.17,237.4,237.22,93.43287797]
[1758296991212,7.17,237.4,237.29,6.99112269]
[1758296991405,7.17,237.4,237.3,6.91]
[1758296991804,7.17,237.4,237.31,6.91]
[1758296992001,7.17,237.45,237.31,6.91]
[1758296992302,1.48360551,237.44,237.33,6.91]
[1758296993503,1.48360551,237.44,237.33,3.79]
[1758296993704,1.48360551,237.44,237.34,6.91]
[1758296995607,1.48360551,237.44,237.34,10.7]
[1758296995997,1.48360551,237.44,237.35,6.91]
[1758296996405,7.17,237.45,237.35,6.91]
[1758296996609,7.17,237.43,237.35,6.91]
[1758296996905,8.65360551,237.43,237.35,6.91]
[1758296997110,7.17,237.43,237.35,6.91]
[1758297000511,1.48360551,237.44,237.35,6.91]
[1758297000805,6.99,237.47,237.35,6.91]
[1758297000806,8.47360551,237.47,237.35,6.91]
[1758297001008,8.47360551,237.47,237.37,7.24]
[1758297001213,8.47360551,237.47,237.37,8.72360551]
[1758297001611,6.99,237.47,237.37,8.72360551]
[1758297002114,6.99,237.47,237.37,5.27300551]
[1758297002314,6.99,237.47,237.38,7.24]
[1758297003020,1.48360551,237.51,237.42,7.24]
[1758297004016,3.8666,237.6,237.42,7.24]
[1758297004017,6.99,237.57,237.42,7.24]
[1758297004328,6.99,237.57,237.48,8.72360551]
[1758297006216,3.8666,237.6,237.48,8.72360551]
[1758297006521,8.47360551,237.58,237.48,7.24]
[1758297007711,6.99,237.58,237.48,7.24]
[1758297008117,3.7864,237.57,237.48,7.24]
[1758297008319,6.99,237.55,237.44,40.13803907]
[1758297008516,6.99,237.55,237.44,7.24]
[1758297010422,6.99,237.53,237.44,7.24]
[1758297011833,6.99,237.53,237.3,58.9658]
[1758297011834,6.99,237.5,237.39,7.24]
[1758297012033,6.99,237.47,237.39,7.24]
[1758297012328,1.48360551,237.45,237.39,7.24]
[1758297013125,6.99,237.47,237.39,7.24]
[1758297014231,1.48360551,237.51,237.4,1.48360551]
[1758297015337,6.99,237.52,237.41,7.24]
[1758297015729,6.99,237.52,237.45,1.48360551]
[1758297019337,6.99,237.58,237.48,1.48360551]
[1758297020234,3.7864,237.57,237.48,1.48360551]
[1758297020434,6.99,237.56,237.48,1.48360551]
[1758297024033,6.99,237.56,237.51,1.48360551]
[1758297024234,6.99,237.56,237.51,8.72360551]
[1758297025242,6.99,237.56,237.52,7.24]
[1758297025443,3.8666,237.6,237.54,1.48360551]
[1758297025444,10.8566,237.6,237.54,1.48360551]
[1758297026433,3.8666,237.6,237.57,1.48360551]
[1758297026630,3.23763897,237.6,237.58,7.24]
[1758297030440,10.26763897,237.6,237.52,7.14]
[1758297030636,10.26763897,237.6,237.56,7.14]
[1758297032635,3.23763897,237.6,237.58,8.62360551]
[1758297032841,3.23763897,237.6,237.58,7.14]
[1758297033040,3.23763897,237.6,237.57,1.48360551]
[1758297033248,7.03,237.59,237.52,7.14]
[1758297033442,7.03,237.59,237.52,8.62360551]
[1758297033636,7.03,237.59,237.51,12.52994173]
[1758297033831,7.03,237.59,237.48,7.14]
[1758297033832,7.03,237.59,237.49,1.48360551]
[1758297034032,10.816,237.59,237.49,1.48360551]
[1758297034946,3.7867,237.55,237.49,12.9249954]
[1758297035236,10.8167,237.55,237.45,1.48360551]
[1758297035432,10.8167,237.55,237.42,33.89383012]
[1758297035433,7.03,237.52,237.42,1.48360551]
[1758297035633,8.51360551,237.52,237.39,7.14]
[1758297035839,8.51360551,237.52,237.41,1.48360551]
[1758297036240,3.7873,237.51,237.41,13.89768094]
[1758297036437,3.7873,237.51,237.41,1.48360551]
[1758297037336,7.03,237.52,237.44,1.48360551]
[1758297038551,7.03,237.52,237.43,1.48360551]
[1758297039440,8.51360551,237.52,237.43,1.48360551]
[1758297039847,8.51360551,237.52,237.42,7.14]
[1758297040643,8.51360551,237.52,237.41,12.77169291]
[1758297040644,1.48360551,237.52,237.41,12.77169291]
[1758297040946,7.03,237.51,237.4,1.48360551]
[1758297041841,7.03,237.48,237.38,7.14]
[1758297042145,7.03,237.45,237.37,1.48360551]
[1758297042545,7.03,237.45,237.38,7.14]
[1758297042844,8.51360551,237.49,237.38,7.14]
[1758297043045,7.03,237.49,237.41,7.14]
[1758297043245,7.03,237.49,237.43,1.48360551]
[1758297046949,65.53550255,237.69,237.46,1.48360551]
[1758297046950,7.03,237.54,237.46,1.48360551]
[1758297047454,7.03,237.54,237.43,1.48360551]
[1758297047649,58.8956,237.59,237.43,1.48360551]
[1758297047650,7.03,237.51,237.43,1.48360551]
[1758297047853,10.8174,237.51,237.4,8.62360551]
[1758297051764,10.8174,237.51,237.4,7.14]
[1758297054166,7.03,237.51,237.4,2.31653394]
[1758297054367,7.03,237.51,237.41,7.14]
[1758297054960,7.03,237.56,237.41,7.14]
[1758297055152,7.03,237.56,237.45,7.14]
[1758297056565,7.03,237.57,237.38,7.14]
[1758297056857,3.7871,237.53,237.39,3.7891]
[1758297057063,7.03,237.52,237.4,7.14]
[1758297058368,7.03,237.52,237.4,10.9289]
[1758297058566,7.03,237.52,237.41,6.6]
[1758297059857,7.08,237.56,237.41,6.6]
[1758297060962,7.08,237.56,237.44,6.6]
[1758297061470,7.08,237.61,237.45,6.6]
[1758297061964,7.08,237.61,237.5,6.6]
[1758297062959,7.08,237.59,237.5,6.6]
[1758297063158,10.8662,237.59,237.45,6.6]
[1758297063373,7.08,237.56,237.45,6.6]
[1758297063563,7.08,237.56,237.41,7.04755305]
[1758297063763,7.08,237.56,237.41,6.6]
[1758297064468,10.8666,237.56,237.41,10.3888]
[1758297064974,7.08,237.56,237.4,6.6]
[1758297065163,7.08,237.56,237.43,2.31653394]
[1758297065359,7.08,237.56,237.44,6.6]
[1758297065963,3.23763897,237.6,237.47,2.31653394]
[1758297066268,3.23763897,237.6,237.48,6.6]
[1758297067065,7.08,237.59,237.48,6.6]
[1758297068391,7.02363897,237.6,237.43,10.3886]
[1758297068392,5.55417291,237.6,237.43,10.3886]
[1758297068762,7.08,237.59,237.43,10.3886]
[1758297069366,3.7862,237.59,237.43,10.3886]
[1758297069561,7.08,237.58,237.46,6.6]
[1758297069766,3.23763897,237.6,237.47,2.31653394]
[1758297069959,3.23763897,237.6,237.48,6.6]
[1758297071668,3.23763897,237.6,237.51,6.6]
[1758297073773,3.23763897,237.6,237.52,3.7871]
[1758297073969,3.23763897,237.6,237.53,6.6]
[1758297074772,3.23763897,237.6,237.54,3.7868]
[1758297075468,3.23763897,237.6,237.55,6.6]
[1758297075666,3.23763897,237.6,237.54,3.7868]
[1758297076466,3.23763897,237.6,237.55,6.6]
[1758297076664,3.23763897,237.6,237.54,3.7868]
[1758297076861,3.23763897,237.6,237.52,6.6]
[1758297077273,7.08,237.59,237.47,40.63577581]
[1758297077473,7.08,237.59,237.47,6.6]
[1758297078871,3.7862,237.58,237.47,6.6]
[1758297079272,7.08,237.59,237.47,6.6]
[1758297081978,10.8662,237.59,237.47,6.6]
[1758297084070,7.08,237.57,237.47,6.6]
[1758297085677,7.08,237.57,237.47,10.388]
[1758297087069,7.08,237.57,237.47,6.6]
[1758297088578,3.23763897,237.6,237.47,6.6]
[1758297088876,3.23763897,237.6,237.49,3.7876]
[1758297089073,3.23763897,237.6,237.5,6.99]
[1758297089671,3.23763897,237.6,237.53,3.787]
[1758297089984,3.23763897,237.6,237.54,6.99]
[1758297090185,3.23763897,237.6,237.57,3.7863]
[1758297090378,3.23763897,237.6,237.58,6.99]
[1758297090580,3.23763897,237.6,237.57,2.31653394]
[1758297090780,3.23763897,237.6,237.58,6.99]
[1758297090980,3.23763897,237.6,237.57,2.31653394]
[1758297091181,3.23763897,237.6,237.58,3.7861]
[1758297091378,3.23763897,237.6,237.59,6.99]
[1758297093282,6.68,237.7,237.59,6.99]
[1758297096780,6.68,237.69,237.54,6.99]
[1758297097186,2.31653394,237.7,237.54,39.93477459]
[1758297097386,6.68,237.69,237.54,6.99]
[1758297097591,10.4645,237.69,237.54,10.7768]
[1758297099390,6.68,237.69,237.57,6.99]
[1758297100990,6.68,237.69,237.6,6.99]
[1758297101191,6.68,237.77,237.6,6.99]
[1758297101593,2.31653394,237.73,237.6,6.99]
[1758297101792,6.68,237.72,237.6,6.99]
[1758297107797,6.68,237.72,237.63,6.99]
[1758297109698,6.68,237.72,237.57,6.99]
[1758297111001,6.68,237.72,237.59,3.786]
[1758297112000,6.68,237.72,237.6,3.7858]
[1758297112500,6.68,237.72,237.6,10.7758]
[1758297112702,6.68,237.72,237.61,3.7856]
[1758297112902,6.68,237.72,237.6,6.99]
[1758297113404,6.68,237.72,237.6,9.30653394]
[1758297113599,6.68,237.72,237.63,3.7854]
[1758297114204,6.68,237.72,237.62,1.47968345]
[1758297115003,6.68,237.72,237.62,5.26508345]
[1758297117810,1.47968345,237.71,237.62,3.7854]
[1758297118029,6.68,237.7,237.6,12.25548345]
[1758297118312,6.68,237.7,237.6,6.99]
[1758297118609,1.47968345,237.68,237.6,6.99]
[1758297119005,6.68,237.7,237.6,6.99]
[1758297119216,6.68,237.7,237.61,3.7856]
[1758297119610,6.68,237.7,237.6,8.46968345]
[1758297119906,7.02,237.77,237.64,6.76]
[1758297120210,7.02,237.75,237.64,6.76]
[1758297120409,1.47968345,237.73,237.58,6.76]
[1758297120604,7.02,237.69,237.58,6.76]
[1758297121708,7.02,237.69,237.6,3.7858]
[1758297122109,7.02,237.69,237.61,6.76]
[1758297122310,7.02,237.69,237.62,3.7855]
[1758297122511,7.02,237.69,237.61,6.76]
[1758297123008,7.02,237.66,237.55,8.23968345]
[1758297123809,7.02,237.66,237.56,3.7864]
[1758297124913,7.02,237.63,237.55,6.76]
[1758297125312,7.02,237.63,237.55,10.5465]
[1758297126016,7.02,237.63,237.57,3.7863]
[1758297126318,7.02,237.68,237.59,1.47968345]
[1758297126514,1.47968345,237.71,237.62,1.47968345]
[1758297127334,7.02,237.72,237.65,1.47968345]
[1758297127510,7.02,237.72,237.63,6.76]
[1758297128607,1.47968345,237.7,237.59,1.47968345]
[1758297128809,7.02,237.69,237.58,10.5461]
[1758297129015,1.47968345,237.67,237.58,10.5461]
[1758297129415,1.47968345,237.64,237.55,3.7865]
[1758297129617,1.47968345,237.64,237.55,10.5465]
[1758297129818,1.47968345,237.64,237.55,6.76]
[1758297130016,7.02,237.63,237.55,6.76]
[1758297131914,1.47968345,237.61,237.52,7.04755305]
[1758297132119,1.47968345,237.58,237.48,13.80755305]
[1758297132514,1.47968345,237.58,237.48,17.59515305]
[1758297133314,1.47968345,237.58,237.49,7.04755305]
[1758297134225,65.51310255,237.78,237.54,6.76]
[1758297134226,1.47968345,237.64,237.54,6.76]
[1758297134419,8.49968345,237.67,237.54,6.76]
[1758297134618,8.49968345,237.67,237.56,1.47968345]
[1758297134817,7.02,237.67,237.59,1.47968345]
[1758297135614,7.5633,237.87,237.59,1.47968345]
[1758297135615,7.02,237.71,237.61,3.7857]
[1758297135919,7.02,237.71,237.62,1.47968345]
[1758297137624,7.02,237.71,237.6,6.76]
[1758297138021,7.02,237.71,237.61,3.7857]
[1758297142321,4.47624565,237.83,237.64,6.76]
[1758297142515,10.00676871,237.82,237.64,6.76]
[1758297142719,7.02,237.8,237.64,6.76]
[1758297142923,7.02,237.78,237.64,6.76]
[1758297143119,7.02,237.78,237.64,19.1809872]
[1758297143316,7.02,237.78,237.64,6.76]
[1758297144225,10.8031,237.78,237.64,6.76]
[1758297144421,58.8387,237.82,237.59,13.80755305]
[1758297144422,2.99169082,237.77,237.59,13.80755305]
[1758297144627,58.8442,237.8,237.59,6.76]
[1758297144628,2.99169082,237.76,237.59,6.76]
[1758297144835,10.01169082,237.75,237.56,7.04755305]
[1758297145023,7.02,237.73,237.56,7.04755305]
[1758297145228,7.02,237.73,237.58,6.76]
[1758297145618,10.8038,237.73,237.58,6.76]
[1758297146327,10.8038,237.73,237.59,3.786]
[1758297146526,7.02,237.73,237.59,3.786]
[1758297147528,7.02,237.73,237.58,6.76]
[1758297147730,7.02,237.73,237.58,19.39868127]
[1758297147930,7.02,237.77,237.58,6.76]
[1758297148118,7.02,237.75,237.58,6.76]
[1758297148323,7.26,237.7,237.58,10.546]
[1758297149330,7.26,237.7,237.6,3.7858]
[1758297150331,7.26,237.7,237.58,6.76]
[1758297151425,7.26,237.69,237.58,19.61450057]
[1758297154932,7.26,237.69,237.58,23.40060057]
[1758297155929,7.26,237.69,237.58,16.64060057]
[1758297156138,7.26,237.69,237.59,7.09]
[1758297161739,7.26,237.69,237.59,10.876]
[1758297162638,7.26,237.69,237.61,1.4802976]
[1758297162838,7.26,237.69,237.62,7.09]
[1758297163238,7.26,237.75,237.64,1.4802976]
[1758297163441,7.26,237.75,237.67,1.4802976]
[1758297170940,7.26,237.75,237.7,1.4802976]
[1758297171140,7.26,237.78,237.7,1.4802976]
[1758297173850,3.7831,237.78,237.65,9.4009973]
[1758297174047,7.26,237.77,237.65,9.4009973]
[1758297178549,11.0433,237.77,237.65,9.4009973]
[1758297178850,7.1,237.76,237.65,9.4009973]
[1758297180649,7.1,237.76,237.66,7.13]
[1758297181650,7.1,237.76,237.67,7.13]
[1758297182551,7.1,237.76,237.67,10.9146]
[1758297182747,7.1,237.76,237.68,7.13]
[1758297182941,7.1,237.76,237.7,7.13]
[1758297183137,7.1,237.84,237.7,7.13]
[1758297183447,7.1,237.82,237.7,7.13]
[1758297183637,7.1,237.82,237.7,10.9142]
[1758297185745,7.1,237.82,237.7,7.13]
[1758297188249,7.1,237.84,237.71,36.8]
[1758297188448,162.94894052,237.86,237.65,7.13]
[1758297188449,7.1,237.8,237.72,51.7]
[1758297188645,2.3109973,237.81,237.72,51.7]
[1758297188846,7.1,237.8,237.72,51.7]
[1758297189250,3.783,237.79,237.72,51.7]
[1758297189453,7.1,237.78,237.72,51.7]
[1758297190952,7.1,237.78,237.68,7.13]
[1758297191150,7.1,237.78,237.69,102.98]
[1758297193248,7.1,237.78,237.68,7.13]
[1758297193448,7.1,237.78,237.69,102.98]
[1758297193750,7.1,237.78,237.68,7.13]
[1758297193951,7.1,237.78,237.69,102.94]
[1758297196651,7.1,237.8,237.7,102.9]
[1758297196852,7.1,237.8,237.68,7.13]
[1758297197053,2.3109973,237.81,237.69,102.88]
[1758297197254,7.1,237.79,237.69,102.88]
[1758297197447,7.1,237.79,237.68,7.13]
[1758297197448,7.1,237.79,237.7,102.88]
[1758297197654,3.7833,237.77,237.7,102.88]
[1758297198055,10.8829,237.79,237.7,110.01]
[1758297199054,3.7831,237.78,237.71,102.86]
[1758297199459,7.1,237.79,237.72,7.13]
[1758297200062,10.883,237.79,237.72,7.13]
[1758297202360,3.7825,237.82,237.72,7.13]
[1758297205770,7.1,237.81,237.72,7.13]
[1758297210969,10.8826,237.81,237.73,102.78]
[1758297213376,10.8826,237.81,237.74,102.78]
[1758297213776,10.8826,237.81,237.74,109.81]
[1758297218374,7.1,237.81,237.74,7.03]
[1758297218592,6.86,237.79,237.76,7.03]
[1758297218791,6.86,237.79,237.77,26.96]
[1758297218973,6.86,237.79,237.77,33.99]
[1758297219376,6.86,237.85,237.77,33.99]
[1758297219576,9.85651512,237.84,237.77,33.99]
[1758297219782,6.77881512,237.83,237.77,33.99]
[1758297219984,2.99651512,237.82,237.77,33.99]
[1758297220182,6.86,237.81,237.78,7.03]
[1758297220377,10.6426,237.81,237.78,7.03]
[1758297220681,0.73218456,237.86,237.77,26.96]
[1758297220883,2.99656818,237.85,237.77,26.96]
[1758297221182,6.86,237.83,237.77,26.96]
[1758297221377,6.86,237.81,237.77,26.96]
[1758297221578,6.86,237.81,237.78,7.03]
[1758297221880,0.73218456,237.86,237.77,26.96]
[1758297222078,3.7828,237.8,237.77,26.96]
[1758297222281,10.6428,237.8,237.77,33.99]
[1758297223781,3.7823,237.83,237.77,33.99]
[1758297223994,2.99712037,237.82,237.77,26.96]
[1758297224172,2.99712037,237.81,237.77,26.96]
[1758297224376,6.86,237.84,237.78,7.03]
[1758297224573,2.99736973,237.83,237.77,26.96]
[1758297224882,2.99736973,237.82,237.77,26.96]
[1758297225079,6.86,237.85,237.77,33.99]
[1758297225282,6.86,237.83,237.77,33.99]
[1758297225583,9.8572139,237.82,237.78,7.03]
[1758297225785,3.7826,237.81,237.78,7.03]
[1758297226484,10.6426,237.81,237.78,7.03]
[1758297226782,3.7828,237.8,237.78,7.03]
[1758297227781,3.7824,237.82,237.77,54.64]
[1758297227987,3.7824,237.82,237.78,7.03]
[1758297228381,3.7824,237.82,237.77,54.64]
[1758297228781,3.7824,237.82,237.78,7.03]
[1758297229390,3.7824,237.82,237.77,54.64]
[1758297229783,3.7824,237.82,237.78,7.03]
[1758297230289,3.7824,237.82,237.77,54.64]
[1758297230481,3.7824,237.82,237.78,7.03]
[1758297230682,3.7824,237.82,237.77,54.64]
[1758297230886,3.7824,237.82,237.78,7.03]
[1758297231281,3.7824,237.82,237.77,54.64]
[1758297231886,3.7824,237.82,237.78,7.03]
[1758297232088,3.7824,237.82,237.77,54.64]
[1758297232302,3.7824,237.82,237.78,7.03]
[1758297232486,3.7824,237.82,237.77,54.64]
[1758297233289,6.86,237.86,237.78,109.79]
[1758297233490,2.99483015,237.85,237.78,109.79]
[1758297233694,6.86,237.86,237.78,109.79]
[1758297233890,2.99483015,237.85,237.78,109.79]
[1758297234079,3.7822,237.84,237.78,109.79]
[1758297234687,3.7822,237.84,237.79,7.03]
[1758297234888,3.7822,237.84,237.78,102.76]
[1758297235285,3.7823,237.83,237.79,102.74]
[1758297235482,6.86,237.82,237.8,102.74]
[1758297236690,6.86,237.82,237.73,1.47858957]
[1758297236991,6.86,237.82,237.75,7.03]
[1758297237392,6.86,237.82,237.76,102.74]
[1758297237590,6.86,237.82,237.77,7.03]
[1758297237791,3.7823,237.83,237.77,7.03]
[1758297238693,10.6123,237.83,237.79,6.58]
[1758297238887,10.6123,237.83,237.78,102.74]
[1758297239286,10.6123,237.83,237.79,6.58]
[1758297240297,3.7823,237.83,237.73,1.47858957]
[1758297240499,9.82305304,237.82,237.74,109.32]
[1758297240688,6.83,237.82,237.75,6.58]
[1758297240889,4.47171554,237.81,237.75,6.58]
[1758297241196,6.83,237.79,237.76,102.74]
[1758297241590,6.83,237.79,237.77,6.58]
[1758297242291,3.7828,237.8,237.77,6.58]
[1758297242999,3.7829,237.79,237.77,6.58]
[1758297244099,3.7832,237.77,237.76,102.74]
[1758297246799,3.7832,237.77,237.73,6.58]
[1758297246998,3.7832,237.77,237.74,102.74]
[1758297247195,3.7832,237.77,237.75,6.58]
[1758297247898,3.7832,237.77,237.74,102.74]
[1758297248397,3.7832,237.77,237.75,6.58]
[1758297248898,3.7835,237.75,237.67,6.58]
[1758297249104,3.7835,237.75,237.65,317.86]
[1758297249105,6.83,237.77,237.68,1.47858957]
[1758297249300,6.83,237.77,237.69,6.58]
[1758297250889,3.7833,237.76,237.69,6.58]
[1758297251496,3.7836,237.75,237.69,6.58]
[1758297254302,3.7836,237.75,237.71,6.58]
[1758297254697,3.7836,237.75,237.7,102.74]
[1758297254999,10.6132,237.77,237.71,6.58]
[1758297255700,6.83,237.77,237.71,6.58]
[1758297256909,6.83,237.82,237.71,8.05858957]
[1758297257127,6.83,237.86,237.78,6.58]
[1758297257298,6.83,237.86,237.79,102.74]
[1758297257700,3.7819,237.85,237.79,102.74]
[1758297258306,3.7816,237.87,237.81,6.58]
[1758297258703,117.73685214,237.89,237.83,8.05858957]
[1758297258904,2.9894632,237.88,237.85,6.58]
[1758297259102,6.83,237.88,237.85,6.58]
[1758297259807,3.7815,237.88,237.85,6.58]
[1758297259998,10.6115,237.88,237.85,6.58]
[1758297260202,10.6115,237.88,237.84,102.74]
[1758297262206,10.6115,237.88,237.84,109.32]
[1758297262405,110.90685214,237.89,237.84,102.74]